bitfinex-derivatives/quotes_ETHF0:USTF0_20251031
["timestamp","ask_amount","ask_price","bid_price","bid_amount"]
[1761942505806,0.2131,3886.7,3886.6,0.46552702]
[1761942507718,0.2131,3886.7,3886.6,0.00215702]
[1761942508316,0.2131,3886.7,3886.6,0.46552702]
[1761942509412,0.2131,3886.7,3886.6,0.00215702]
[1761942510616,0.2131,3886.7,3886.6,0.46552702]
[1761942510817,0.1363,3887.0,3886.9,0.46333]
[1761942514217,0.3494,3887.0,3886.9,0.46333]
[1761942514721,0.2131,3886.9,3886.8,0.46334]
[1761942515910,0.1363,3887.0,3886.9,0.46333]
[1761942521226,0.1363,3887.0,3886.9,1.38978918]
[1761942524626,0.1363,3887.0,3886.9,0.46333]
[1761942525033,0.1363,3887.5,3887.4,0.46327]
[1761942527434,0.1363,3887.5,3887.1,4.13204745]
[1761942527635,0.1363,3887.5,3887.1,3.2078]
[1761942527836,0.1363,3887.5,3887.4,0.46327]
[1761942531433,0.3623,3887.5,3887.4,0.46327]
[1761942533647,0.1363,3887.5,3887.4,0.46327]
[1761942540151,0.1363,3887.5,3887.4,1.38751745]
[1761942542658,0.12955651,3888.0,3887.9,0.46321]
[1761942542846,0.21000778,3888.0,3887.9,0.46321]
[1761942543356,0.12955651,3888.0,3887.9,0.46321]
[1761942545560,0.226,3887.9,3887.8,0.92525771]
[1761942545756,0.226,3887.7,3887.6,1.38850771]
[1761942546860,0.226,3887.7,3887.6,0.92525771]
[1761942547469,0.226,3887.7,3887.6,1.38850771]
[1761942547656,0.226,3887.7,3887.6,0.92525771]
[1761942547856,0.226,3887.7,3887.5,0.92525771]
[1761942548063,0.357,3887.5,3887.4,0.92525771]
[1761942548255,0.226,3887.3,3887.2,3.67109]
[1761942548455,0.226,3887.3,3887.2,3.2078]
[1761942548854,0.226,3887.1,3887.0,0.92531243]
[1761942550862,0.226,3887.1,3887.0,1.38863243]
[1761942551869,0.1354,3887.0,3886.9,0.92531243]
[1761942552058,0.1354,3887.0,3886.9,1.38864243]
[1761942552758,0.1354,3887.0,3886.9,0.46333]
[1761942553064,0.1354,3887.0,3886.8,4.13311243]
[1761942553263,0.2142,3886.9,3886.8,4.13311243]
[1761942553969,0.2142,3886.9,3886.8,0.92531243]
[1761942554165,0.2142,3886.8,3886.7,0.92531243]
[1761942554361,0.1354,3887.0,3886.6,0.46552702]
[1761942554362,0.2142,3886.7,3886.6,0.46552702]
[1761942554562,0.2142,3886.7,3886.6,1.39083945]
[1761942555368,0.2142,3886.7,3886.6,0.46552702]
[1761942555569,0.2142,3886.7,3886.6,0.00215702]
[1761942555765,0.2142,3886.7,3886.6,0.46552702]
[1761942557163,0.1354,3887.0,3886.9,0.46333]
[1761942557362,0.1354,3887.0,3886.8,0.46334]
[1761942557763,0.1354,3887.0,3886.8,3.67114]
[1761942557965,0.1354,3887.0,3886.9,0.46333]
[1761942558673,0.1354,3887.0,3886.9,1.38864243]
[1761942559069,0.1354,3887.0,3886.9,0.46333]
[1761942564079,0.1354,3887.0,3886.9,1.38760549]
[1761942564280,0.1354,3887.0,3886.9,0.46333]
[1761942565072,0.1354,3887.0,3886.9,1.3876154]
[1761942565271,0.1354,3887.0,3886.9,0.46333]
[1761942568273,0.131,3887.5,3887.4,0.46327]
[1761942573280,0.131,3887.5,3887.4,1.38762152]
[1761942575673,0.131,3887.5,3887.4,0.46327]
[1761942582183,0.131,3887.5,3887.4,1.38777296]
[1761942583786,0.131,3887.5,3887.4,0.46327]
[1761942584389,0.131,3887.5,3887.4,1.84521066]
[1761942584881,0.00205651,3888.0,3887.9,0.46321]
[1761942585083,0.00205651,3888.0,3887.9,3.67101]
[1761942585884,0.00205651,3888.0,3887.9,5.05766172]
[1761942587087,0.13835651,3888.0,3887.9,3.67101]
[1761942590986,0.13835651,3888.0,3887.9,5.05766172]
[1761942591190,0.13835651,3888.0,3887.9,3.67101]
[1761942592090,0.13835651,3888.0,3887.9,5.05766172]
[1761942593890,0.00205651,3888.0,3887.9,5.05766172]
[1761942594490,0.13835651,3888.0,3887.9,5.05766172]
[1761942595194,0.13835651,3888.0,3887.9,3.67101]
[1761942599904,0.13835651,3888.0,3887.9,5.05766172]
[1761942600205,0.00205651,3888.0,3887.9,5.05766172]
[1761942600408,0.00205651,3888.0,3887.9,3.67101]
[1761942601500,0.13835651,3888.0,3887.9,3.67101]
[1761942605306,0.139,3889.0,3888.9,0.46309]
[1761942606411,0.14082559,3889.0,3888.9,0.46309]
[1761942607515,0.14082559,3889.0,3888.9,1.38719989]
[1761942608417,0.14082559,3889.0,3888.9,0.46309]
[1761942608617,0.00182559,3889.0,3888.9,0.46309]
[1761942608810,0.00182559,3889.0,3888.9,1.38719989]
[1761942609014,0.13812559,3889.0,3888.9,1.38719989]
[1761942609217,0.1363,3889.5,3888.9,1.38719989]
[1761942609218,0.1363,3889.5,3889.4,0.46303]
[1761942610418,0.1363,3889.5,3889.4,0.46584252]
[1761942610419,0.1392782,3889.5,3889.4,0.46584252]
[1761942612014,3.5711,3890.0,3889.9,0.46297]
[1761942612817,3.2078,3890.9,3890.4,0.53191]
[1761942613014,0.36622642,3890.5,3890.1,0.46294]
[1761942613318,0.36622642,3890.5,3890.1,3.67074]
[1761942613713,0.227,3890.3,3890.2,0.46293]
[1761942614216,0.227,3890.2,3890.1,3.2078]
[1761942614411,0.13922642,3890.5,3889.6,3.2078]
[1761942614412,0.1395,3890.0,3889.6,3.2078]
[1761942614617,0.227,3889.6,3889.5,0.46302]
[1761942614812,0.3665,3889.5,3889.4,0.00281252]
[1761942615518,0.3665,3889.5,3889.4,0.46584252]
[1761942616014,0.3665,3889.5,3889.4,0.00281252]
[1761942620918,0.2262,3889.3,3888.7,3.2078]
[1761942621125,0.2262,3888.8,3888.7,3.2078]
[1761942621527,0.2262,3888.4,3888.3,4.13123134]
[1761942621717,0.2262,3888.4,3888.3,3.67095]
[1761942621912,0.2262,3888.4,3888.3,3.21010722]
[1761942623526,0.2262,3888.4,3888.3,3.67326722]
[1761942624224,0.2262,3888.4,3888.3,3.21010722]
[1761942624722,0.2262,3888.4,3888.3,3.67326722]
[1761942626423,0.1361,3888.5,3888.4,0.53555]
[1761942631133,0.1361,3889.0,3888.3,3.21010722]
[1761942631134,0.1361,3889.0,3888.9,0.53549]
[1761942631432,0.1361,3889.0,3888.9,3.74329]
[1761942631934,0.3623,3889.0,3888.9,3.67089]
[1761942633334,0.3623,3889.0,3888.9,3.74329]
[1761942633335,0.1361,3889.0,3888.9,3.74329]
[1761942634125,0.3623,3889.0,3888.9,3.2078]
[1761942634435,0.3623,3889.0,3888.9,3.67089]
[1761942636331,0.3623,3889.0,3888.9,3.2078]
[1761942637139,0.3623,3889.0,3888.9,3.67089]
[1761942638936,0.3623,3889.0,3888.9,3.2078]
[1761942639141,0.3623,3889.0,3888.9,3.67089]
[1761942639643,0.2262,3888.6,3888.5,3.2078]
[1761942639843,0.2262,3888.6,3888.5,3.67094]
[1761942640035,0.2262,3888.6,3888.5,3.2078]
[1761942644435,0.2262,3888.6,3888.5,3.67094]
[1761942644835,0.1407,3888.5,3888.3,0.00230722]
[1761942645038,0.2206,3888.4,3888.3,0.00230722]
[1761942645245,0.30103872,3888.4,3888.3,0.00230722]
[1761942645440,0.30103872,3888.4,3887.6,1.38667134]
[1761942645441,0.2206,3887.8,3887.6,1.38667134]
[1761942645643,0.1407,3888.0,3887.6,1.38667134]
[1761942645644,0.2206,3887.7,3887.6,1.38667134]
[1761942646447,0.2206,3887.7,3887.6,0.46558487]
[1761942646448,0.22292437,3887.7,3887.6,0.46558487]
[1761942648538,0.22292437,3887.7,3887.6,0.00234487]
[1761942649546,0.30337888,3887.7,3887.6,0.00234487]
[1761942650950,0.30337888,3887.7,3887.2,3.2078]
[1761942651157,0.1407,3887.0,3886.8,3.67113]
[1761942652058,0.1407,3887.0,3886.8,3.21051199]
[1761942652756,0.1407,3887.0,3886.8,3.67385199]
[1761942653653,0.1407,3887.0,3886.8,3.21051199]
[1761942655352,0.2206,3886.9,3886.8,3.21051199]
[1761942655753,0.2206,3886.9,3886.8,0.00271199]
[1761942656453,0.2206,3886.1,3886.0,3.2078]
[1761942656853,0.1407,3886.0,3885.8,0.46346]
[1761942657252,0.2206,3885.7,3885.6,3.2078]
[1761942657451,0.2206,3885.7,3885.6,3.21089539]
[1761942657954,0.2206,3885.7,3885.6,3.67437539]
[1761942658454,0.1407,3886.0,3885.6,3.75387539]
[1761942659159,0.1407,3886.0,3885.6,3.29039539]
[1761942660854,0.2206,3885.7,3885.6,0.00309539]
[1761942662456,0.1407,3886.0,3885.6,0.00309539]
[1761942663062,0.1407,3886.0,3885.6,0.46657539]
[1761942664462,0.1407,3886.0,3885.6,3.21089539]
[1761942664865,0.3613,3886.0,3885.9,0.46345]
[1761942665266,0.3613,3886.0,3885.7,0.46346]
[1761942665461,0.3613,3886.0,3885.8,0.46346]
[1761942666258,0.3613,3886.0,3885.9,0.46344]
[1761942666460,0.3613,3886.0,3885.6,3.21089539]
[1761942666665,0.2206,3885.8,3885.6,3.21089539]
[1761942666861,0.2206,3885.8,3885.7,0.46347]
[1761942667367,0.1407,3886.0,3885.8,0.46345]
[1761942667562,0.2206,3885.9,3885.8,0.46345]
[1761942667764,0.1407,3886.0,3885.9,0.54295]
[1761942669967,0.3613,3886.0,3885.7,0.46347]
[1761942670167,0.2206,3885.9,3885.8,0.46346]
[1761942670368,0.2328,3885.8,3885.7,0.46347]
[1761942672168,0.2328,3885.7,3885.6,3.21089539]
[1761942673366,0.2328,3885.7,3885.6,3.67437539]
[1761942674867,0.2328,3885.7,3885.6,3.21089539]
[1761942675067,0.2328,3885.7,3885.6,0.00309539]
[1761942675275,0.31329907,3885.7,3885.6,0.00309539]
[1761942680268,3.52109907,3885.7,3885.6,0.00309539]
[1761942682376,3.52110377,3885.7,3885.6,0.00309539]
[1761942685166,0.31330377,3885.7,3885.6,0.00309539]
[1761942687274,0.31330403,3885.7,3885.6,0.00309539]
[1761942690880,0.31330403,3885.7,3885.6,0.08259539]
[1761942690881,0.08050403,3885.7,3885.6,0.08259539]
[1761942691080,0.54397403,3885.7,3885.6,0.08259539]
[1761942692771,0.77357403,3885.7,3885.6,0.08259539]
[1761942692981,0.77357403,3885.7,3885.6,0.00309539]
[1761942695277,0.3632,3885.0,3884.9,0.92343134]
[1761942695478,0.44370403,3885.0,3884.9,0.92343134]
[1761942695677,0.44370403,3885.0,3884.9,1.38699134]
[1761942696087,0.44370403,3885.0,3884.9,0.92343134]
[1761942696286,0.44370403,3885.0,3884.9,0.92546057]
[1761942697289,0.44370403,3885.0,3884.9,0.00202923]
[1761942699187,0.44370403,3885.0,3884.9,0.92546057]
[1761942701884,0.44370403,3885.0,3884.9,0.00202923]
[1761942702284,0.44370403,3885.0,3884.9,0.92546057]
[1761942704799,0.44370647,3885.0,3884.9,0.92546057]
[1761942705299,0.44370647,3885.0,3884.9,0.00202923]
[1761942709387,0.44370647,3885.0,3884.5,0.92343134]
[1761942709388,0.2258,3884.6,3884.5,0.92343134]
[1761942709998,0.2258,3884.6,3884.5,1.38704134]
[1761942710297,0.2258,3884.4,3884.3,0.49155669]
[1761942710493,0.2258,3884.3,3884.2,0.42007559]
[1761942710794,0.30631585,3884.3,3884.2,4.808e-05]
[1761942710988,0.2258,3883.6,3883.5,3.2078]
[1761942711897,0.2258,3883.6,3883.5,3.67153]
[1761942712098,0.2258,3883.6,3883.5,3.90322191]
[1761942712297,0.2258,3883.6,3883.5,3.43949191]
[1761942712496,0.2258,3883.6,3883.5,3.90322191]
[1761942713007,0.1331,3884.0,3883.7,0.6923]
[1761942713395,0.1331,3884.0,3883.6,0.46372]
[1761942714099,0.1331,3884.0,3883.7,0.4637]
[1761942714506,0.1331,3884.0,3883.5,3.21089191]
[1761942714700,0.1331,3884.0,3883.9,0.2286]
[1761942714899,0.3589,3884.0,3883.9,0.2286]
[1761942715102,0.3589,3884.0,3883.5,3.29639191]
[1761942719517,0.3589,3884.0,3883.5,3.21089191]
[1761942719718,0.2258,3883.6,3883.5,3.21089191]
[1761942720016,0.1331,3884.0,3883.5,3.43949191]
[1761942720413,0.2258,3883.6,3883.5,3.43949191]
[1761942720717,3.3409,3884.5,3883.9,0.2286]
[1761942720913,0.08052983,3884.4,3883.9,0.2286]
[1761942721221,3.3409,3884.5,3883.9,0.2286]
[1761942721413,0.08052926,3884.4,3883.9,0.2286]
[1761942721613,3.3409,3884.5,3883.9,3.4364]
[1761942721816,0.08052926,3884.4,3883.9,3.4364]
[1761942722115,3.3409,3884.5,3883.9,3.4364]
[1761942722318,0.08052766,3884.4,3883.9,3.4364]
[1761942722516,3.3409,3884.5,3883.9,3.4364]
[1761942722721,0.08052766,3884.4,3883.9,3.4364]
[1761942722916,3.3409,3884.5,3884.3,0.2286]
[1761942723121,0.08052766,3884.4,3884.3,0.2286]
[1761942723819,3.3409,3884.5,3884.4,0.2286]
[1761942724022,3.2078,3884.5,3884.4,0.2286]
[1761942724926,0.00302159,3884.6,3884.5,0.2286]
[1761942725222,0.22882159,3884.6,3884.5,0.2286]
[1761942726423,0.22882159,3884.6,3883.5,3.29639191]
[1761942726424,0.1331,3884.5,3883.5,3.29639191]
[1761942726629,0.08052149,3884.4,3883.5,3.29639191]
[1761942727526,0.08052149,3884.4,3883.5,3.21089191]
[1761942729924,0.1331,3884.0,3883.5,3.21089191]
[1761942730131,0.2258,3883.6,3883.5,3.21089191]
[1761942730825,0.2258,3883.6,3883.5,3.43949191]
[1761942731728,0.30634249,3883.6,3883.5,0.00309191]
[1761942732328,0.30634064,3883.6,3883.5,0.00309191]
[1761942732823,3.2078,3884.2,3884.1,0.2247]
[1761942733130,0.08053285,3884.2,3884.1,0.2247]
[1761942733328,0.31343285,3884.2,3884.1,0.2247]
[1761942733624,0.31343285,3884.2,3883.5,0.09569191]
[1761942733828,0.1331,3884.5,3883.5,0.09569191]
[1761942733829,0.13,3884.0,3883.5,0.09569191]
[1761942734125,0.13,3884.0,3883.5,0.00309191]
[1761942734325,0.08053455,3883.9,3883.5,0.00309191]
[1761942734522,0.2329,3883.6,3883.5,0.00309191]
[1761942734724,0.13,3884.0,3883.5,0.00309191]
[1761942734725,0.13,3884.0,3883.5,0.22779191]
[1761942734926,0.08053486,3883.9,3883.5,0.32039191]
[1761942735125,0.13,3884.0,3883.5,0.32039191]
[1761942735325,0.08053458,3883.9,3883.5,0.32039191]
[1761942735530,0.13,3884.0,3883.5,0.22779191]
[1761942735725,0.08053458,3883.9,3883.5,0.22779191]
[1761942735928,0.13,3884.0,3883.5,0.22779191]
[1761942736229,0.08053458,3883.9,3883.5,0.22779191]
[1761942736429,0.13,3884.0,3883.5,0.22779191]
[1761942736631,0.08053351,3883.9,3883.5,0.22779191]
[1761942736830,0.13,3884.0,3883.5,0.22779191]
[1761942737022,0.08053351,3883.9,3883.5,0.22779191]
[1761942737223,0.13,3884.0,3883.5,0.22779191]
[1761942737422,0.08053351,3883.9,3883.5,0.22779191]
[1761942737617,0.2329,3883.6,3883.5,0.00309191]
[1761942738032,0.13,3884.0,3883.5,0.22779191]
[1761942738229,0.08053709,3883.9,3883.5,0.22779191]
[1761942738417,0.08053709,3883.8,3883.5,0.22779191]
[1761942738617,0.13,3884.0,3883.5,0.22779191]
[1761942738823,0.08053424,3883.9,3883.5,0.22779191]
[1761942739120,0.08053424,3883.8,3883.5,0.22779191]
[1761942739322,0.08053424,3883.7,3883.6,0.2247]
[1761942739622,0.08053424,3883.7,3883.5,0.00309191]
[1761942739623,0.13,3884.0,3883.8,0.2247]
[1761942739828,0.08053501,3883.9,3883.8,0.2247]
[1761942740032,0.31343501,3883.9,3883.5,0.00309191]
[1761942740326,0.08053501,3883.8,3883.5,0.00309191]
[1761942740626,0.08053501,3883.7,3883.6,0.2247]
[1761942741030,0.31343501,3883.7,3883.6,0.2247]
[1761942741426,0.08053501,3883.7,3883.6,0.2247]
[1761942741626,0.08053501,3883.9,3883.6,0.2247]
[1761942741826,0.08053501,3883.8,3883.6,0.2247]
[1761942742031,0.08053501,3883.7,3883.6,0.68842]
[1761942742333,0.1331,3884.5,3883.6,1.38616484]
[1761942742534,0.08052735,3884.4,3884.3,0.2309]
[1761942745524,0.29812735,3884.4,3884.3,0.2309]
[1761942745830,0.29812735,3884.4,3883.8,4.13383006]
[1761942746030,0.08052735,3884.3,3884.2,0.2309]
[1761942746424,0.13757745,3884.5,3884.2,3.4387]
[1761942746629,0.0805207,3884.4,3884.2,3.4387]
[1761942746830,0.13757745,3884.5,3884.3,0.2309]
[1761942750338,0.00302159,3884.6,3884.5,0.2309]
[1761942751242,0.00302159,3884.6,3884.5,0.83191]
[1761942751539,0.00302159,3884.6,3884.5,1.75794006]
[1761942751939,3.2078,3885.8,3885.4,0.2309]
[1761942752836,3.21025867,3885.8,3885.4,0.2309]
[1761942753039,0.141,3885.5,3885.4,0.2309]
[1761942753238,0.141,3885.5,3884.8,3.2078]
[1761942753239,0.3586,3885.5,3884.8,3.2078]
[1761942754933,0.3586,3885.5,3884.9,0.46356]
[1761942755138,0.3586,3885.5,3885.0,0.59705]
[1761942755541,0.3586,3885.5,3885.0,0.1335]
[1761942756843,0.3586,3885.5,3884.8,3.2078]
[1761942758340,0.2176,3884.9,3884.8,3.2078]
[1761942763353,0.2176,3884.9,3884.3,3.2078]
[1761942764247,0.2176,3884.9,3884.3,3.67143]
[1761942764549,0.2176,3884.9,3884.3,3.2078]
[1761942768953,3.2078,3885.4,3884.9,0.2161]
[1761942769159,0.08051434,3885.3,3884.9,0.2161]
[1761942769352,0.08051434,3885.2,3885.1,0.2161]
[1761942770257,0.30201434,3885.2,3885.1,0.2161]
[1761942772757,0.30201434,3885.2,3884.5,0.60001]
[1761942772954,0.1308,3885.0,3884.5,0.60001]
[1761942773154,0.08051434,3884.9,3884.5,0.60001]
[1761942773360,0.1308,3885.0,3884.5,0.60001]
[1761942773559,0.08051305,3884.9,3884.5,0.60001]
[1761942773757,0.08051305,3884.9,3884.3,4.13275976]
[1761942773758,0.08051337,3884.8,3884.3,4.13275976]
[1761942773951,0.08051337,3884.7,3884.3,3.2078]
[1761942774258,0.1308,3884.5,3884.3,3.2078]
[1761942775855,0.1308,3885.0,3884.4,0.2161]
[1761942776056,3.2078,3885.4,3884.8,0.2161]
[1761942776057,0.0805155,3884.9,3884.8,0.2161]
[1761942776254,0.0805155,3884.9,3884.8,3.4239]
[1761942777459,0.08051112,3884.9,3884.8,3.4239]
[1761942778563,0.08051112,3884.9,3884.8,3.88747]
[1761942778858,3.21025867,3885.8,3885.0,0.1346]
[1761942779054,0.0805087,3885.7,3885.0,0.1346]
[1761942779362,0.2215,3885.7,3885.6,0.2161]
[1761942779661,0.30200863,3885.7,3885.6,0.2161]
[1761942780255,0.30200863,3885.7,3885.0,0.1346]
[1761942780460,0.08050863,3885.6,3885.0,0.59815]
[1761942780660,0.08050863,3885.5,3885.4,0.2161]
[1761942781153,0.08050427,3885.5,3885.4,0.2161]
[1761942781361,0.21130427,3885.5,3885.2,3.2078]
[1761942781555,0.21130427,3885.5,3884.5,1.52256484]
[1761942781556,0.2215,3885.3,3884.6,3.2078]
[1761942781757,0.3523,3884.5,3884.2,0.42007559]
[1761942781963,0.2215,3884.3,3884.2,0.42007559]
[1761942782253,0.30200427,3884.3,3884.2,0.42007559]
[1761942784866,0.08050427,3884.3,3884.2,1.09982559]
[1761942785066,3.3386,3884.5,3884.2,1.09982559]
[1761942785067,3.3386,3884.5,3884.4,0.2161]
[1761942785267,3.41912894,3884.5,3884.4,0.2161]
[1761942786663,3.64062894,3884.5,3884.4,0.2161]
[1761942786865,0.43282894,3884.5,3884.4,0.2161]
[1761942788662,0.43282894,3884.5,3884.4,0.67972]
[1761942788663,0.08052894,3884.5,3884.4,0.67972]
[1761942788873,3.2078,3884.9,3884.8,0.2161]
[1761942790665,0.1308,3885.5,3884.8,0.2161]
[1761942790666,3.2078,3885.4,3884.8,0.2161]
[1761942790860,0.08050907,3885.3,3884.8,0.2161]
[1761942791065,0.08050907,3885.3,3884.7,3.67139]
[1761942791066,3.21025867,3885.8,3885.2,0.2161]
[1761942791371,0.0805039,3885.7,3885.2,0.2161]
[1761942791568,0.1284,3885.5,3885.1,3.2078]
[1761942791778,0.0805039,3885.4,3884.7,0.92507908]
[1761942792068,0.0805039,3885.3,3884.8,3.2078]
[1761942792272,0.0805039,3885.2,3884.8,3.2078]
[1761942792465,0.1284,3885.5,3884.8,3.2078]
[1761942792667,0.08050627,3885.4,3884.8,3.2078]
[1761942792866,0.08050627,3885.3,3885.2,0.2165]
[1761942795275,3.43815867,3885.8,3885.1,0.46354]
[1761942795462,0.30840327,3885.7,3885.1,0.46354]
[1761942795667,0.3563,3885.5,3885.0,0.59975]
[1761942795867,0.08050327,3885.4,3885.3,0.2165]
[1761942796276,0.1284,3885.5,3885.3,0.2165]
[1761942796676,3.21025867,3885.8,3885.4,0.2165]
[1761942796876,0.08050257,3885.7,3885.4,0.2165]
[1761942797075,0.08050257,3885.6,3885.4,0.2165]
[1761942797277,0.08050257,3885.5,3885.4,0.2165]
[1761942801179,3.21025867,3885.8,3885.4,0.2165]
[1761942801377,0.08050115,3885.7,3885.4,0.2165]
[1761942801580,0.08050115,3885.6,3885.4,0.2165]
[1761942801771,3.21025867,3885.8,3885.4,0.2165]
[1761942801973,0.08050115,3885.7,3885.4,0.2165]
[1761942802172,0.08050115,3885.6,3885.4,0.2165]
[1761942802367,3.21025867,3885.8,3885.4,0.2165]
[1761942802571,0.3482,3885.5,3885.2,3.2078]
[1761942802873,0.3482,3885.5,3884.9,0.46356]
[1761942802874,0.08050645,3885.4,3884.9,0.46356]
[1761942803075,0.1352,3885.5,3884.9,0.46356]
[1761942803279,0.08050647,3885.4,3884.9,0.46356]
[1761942803481,0.1352,3885.5,3884.9,0.46356]
[1761942803668,0.08050575,3885.4,3884.9,0.46356]
[1761942803879,0.1352,3885.5,3884.7,0.46357]
[1761942804078,0.08050575,3885.4,3884.6,3.6714]
[1761942804274,0.1352,3885.5,3884.6,3.6714]
[1761942804478,0.08050576,3885.4,3884.6,3.6714]
[1761942804677,0.1352,3885.5,3884.6,3.6714]
[1761942804878,0.08050576,3885.4,3884.6,3.6714]
[1761942805081,0.213,3884.7,3884.6,3.2078]
[1761942808181,0.213,3884.7,3884.5,3.2078]
[1761942808386,0.213,3884.7,3884.2,0.42007559]
[1761942808682,0.1352,3884.5,3884.2,0.42007559]
[1761942809283,0.213,3884.3,3884.2,0.42007559]
[1761942809483,0.29352335,3884.3,3884.2,0.42007559]
[1761942810286,0.213,3884.3,3884.2,0.42007559]
[1761942810579,0.29352719,3884.3,3884.2,0.42007559]
[1761942811691,0.1352,3884.0,3883.5,0.00309191]
[1761942811987,0.213,3882.6,3882.5,3.3348]
[1761942812188,0.213,3882.6,3882.1,3.2078]
[1761942812587,3.343,3883.0,3882.5,0.3491]
[1761942812790,0.213,3882.6,3882.5,0.3491]
[1761942812991,0.21606199,3882.6,3882.5,0.35119747]
[1761942813287,0.21606199,3882.6,3882.5,0.00209747]
[1761942814485,0.21606199,3882.6,3882.5,0.12909747]
[1761942814786,0.21606199,3882.6,3882.5,0.00209747]
[1761942814991,3.42386199,3882.6,3882.5,0.00209747]
[1761942819990,0.1352,3882.5,3881.5,0.127]
[1761942820195,0.2291,3881.4,3881.3,3.2078]
[1761942820582,0.2291,3881.4,3880.9,3.2078]
[1761942820994,0.2291,3881.4,3881.0,0.12950809]
[1761942821196,0.2291,3881.4,3881.3,0.2298]
[1761942821395,3.2078,3882.1,3881.5,0.1356]
[1761942821590,3.2078,3882.1,3882.0,0.3654]
[1761942821894,0.00306199,3882.6,3882.4,0.2298]
[1761942824990,0.00306199,3882.6,3882.5,0.3654]
[1761942825695,0.23216199,3882.6,3882.5,0.3654]
[1761942825892,0.00306199,3882.6,3882.5,0.3654]
[1761942827188,0.00306199,3882.6,3882.5,0.82925]
[1761942827993,0.00306199,3882.6,3882.5,4.03705]
[1761942828194,0.00306199,3882.6,3882.5,0.82925]
[1761942829493,3.2078,3883.3,3883.2,0.2298]
[1761942829694,3.41634396,3884.4,3883.2,3.4376]
[1761942829995,0.08054687,3884.3,3883.5,0.1356]
[1761942830197,3.2078,3884.4,3883.6,0.46371]
[1761942830401,0.08053598,3884.3,3884.2,0.2298]
[1761942830699,0.00294979,3884.3,3884.2,0.23273175]
[1761942833394,0.00294979,3884.3,3884.2,3.44053175]
[1761942836602,0.00294979,3884.3,3884.2,3.90418175]
[1761942840202,0.23204979,3884.3,3884.2,0.00293175]
[1761942840505,0.31258271,3884.3,3884.2,0.00293175]
[1761942841300,0.2291,3883.8,3883.7,3.2078]
[1761942842402,8.2291,3883.8,3883.7,3.21031197]
[1761942842608,11.51743774,3883.8,3882.8,0.46382]
[1761942842805,0.1304,3884.0,3882.6,3.2078]
[1761942842806,0.2291,3883.1,3882.6,0.46384]
[1761942843004,0.2291,3883.1,3882.5,0.59945]
[1761942843196,0.2291,3883.1,3882.6,0.46384]
[1761942843704,0.2291,3883.1,3882.6,0.00247585]
[1761942846208,0.2291,3882.7,3882.6,0.00247585]
[1761942847706,0.30966272,3882.7,3882.6,0.00247585]
[1761942849902,3.2078,3882.9,3882.8,0.2298]
[1761942850106,3.28836386,3882.9,3882.8,0.2298]
[1761942850709,3.51746386,3882.9,3882.8,0.2298]
[1761942850913,0.08056386,3882.9,3882.8,0.2298]
[1761942851609,0.29986386,3882.9,3882.8,0.2298]
[1761942851804,0.08056386,3882.9,3882.6,0.69481585]
[1761942852011,0.08055909,3882.8,3882.7,0.69233]
[1761942852215,3.2078,3883.4,3882.8,0.46381]
[1761942852406,0.08055536,3883.3,3882.8,0.46381]
[1761942852717,0.08055536,3883.2,3882.8,0.46381]
[1761942853016,0.08055536,3883.1,3882.6,0.46630585]
[1761942853209,0.08055536,3883.0,3882.9,0.2285]
[1761942853507,0.08055536,3883.3,3882.9,0.2285]
[1761942853812,0.08055536,3883.2,3882.9,0.2285]
[1761942854014,0.08055536,3883.1,3882.9,0.2285]
[1761942854215,0.08055536,3883.0,3882.9,0.2285]
[1761942854406,0.08055536,3883.3,3882.9,0.2285]
[1761942854603,0.08055536,3883.2,3882.9,0.2285]
[1761942854809,0.08055536,3883.1,3882.9,0.2285]
[1761942855108,0.08055536,3883.0,3882.9,0.2285]
[1761942855308,3.2078,3883.4,3883.0,0.1304]
[1761942855509,0.08055565,3883.3,3883.0,0.1304]
[1761942855708,0.08055565,3883.2,3883.1,0.2285]
[1761942855914,0.29985565,3883.2,3883.1,0.2285]
[1761942856319,0.29985565,3883.2,3883.0,0.1304]
[1761942856617,0.08055565,3883.1,3883.0,0.1304]
[1761942856822,0.08055565,3883.1,3882.6,0.00247585]
[1761942856823,0.29985565,3883.1,3882.6,0.00247585]
[1761942857118,0.08055565,3883.0,3882.6,0.00247585]
[1761942857313,0.08055565,3882.9,3882.6,0.00247585]
[1761942857508,3.2078,3883.4,3882.6,0.46631585]
[1761942857703,0.08055866,3883.3,3882.6,0.46631585]
[1761942857909,0.08055866,3883.2,3882.6,0.46631585]
[1761942858109,0.08055866,3883.1,3882.6,0.00247585]
[1761942858310,3.28835866,3883.0,3882.6,0.00247585]
[1761942858616,0.08055866,3882.9,3882.6,0.00247585]
[1761942858809,0.08055866,3882.9,3882.6,0.46631585]
[1761942860213,0.08055866,3882.9,3882.8,0.2345]
[1761942860514,0.2316,3882.9,3882.6,0.00247585]
[1761942865716,0.2316,3882.7,3882.6,0.00247585]
[1761942866417,3.3476,3883.0,3882.6,0.23697585]
[1761942866620,0.08055969,3882.9,3882.6,0.23697585]
[1761942866813,0.08055969,3882.8,3882.6,0.23697585]
[1761942867015,3.3476,3883.0,3882.6,0.23697585]
[1761942867216,0.08055969,3882.9,3882.6,0.23697585]
[1761942867412,0.08055969,3882.8,3882.6,0.23697585]
[1761942867618,0.08055969,3882.7,3882.6,0.23697585]
[1761942867815,0.31215969,3882.7,3882.6,0.00247585]
[1761942869926,0.08055969,3882.7,3882.6,0.23697585]
[1761942871123,0.31215969,3882.7,3882.6,0.00247585]
[1761942871517,0.08055969,3882.7,3882.6,0.70082585]
[1761942874327,0.31215969,3882.7,3882.6,0.00247585]
[1761942875325,0.08055969,3882.7,3882.6,0.23697585]
[1761942876234,0.31215969,3882.7,3882.6,0.23697585]
[1761942876728,0.08055969,3882.7,3882.6,0.23697585]
[1761942877432,0.08055969,3882.7,3882.6,0.70082585]
[1761942878035,0.08055969,3882.7,3882.6,0.23697585]
[1761942878432,0.08055969,3882.7,3882.6,0.70082585]
[1761942879329,0.08055969,3882.7,3882.6,3.90862585]
[1761942882728,0.08055969,3882.7,3882.6,0.23697585]